Cogmind - Beta 11 @@@ ROGUE MODE // 2022.04.20 @ 14:57:01 Player: aperiodic Result: Destroyed by 1C-UTU with 1C-UTU's Sword "Lootmaker" Performance ------------- Evolutions (1) 500 Regions Visited (6) 1200 Robots Destroyed (103) 515 Value Destroyed (1927) 1927 Prototype IDs (37) 740 Alien Tech Used (0) 0 Bonus (345) 345 TOTAL SCORE: 5227 Bonus ------- High Alert Combat Kills 38 Follower Combat Kills 7 Aligned with FarCom 300 Cogmind --------- Core Integrity 0/400 Matter 266/300 Energy 21/100 System Corruption 0% Temperature Cool (0) Movement Walking (120) Location -8/Mines Parts ------- > --- POWER (1) -------- (None) > --- PROPULSION (3) --- Advanced Myomer Leg Advanced Myomer Leg > --- UTILITY (3) ------ High-capacity Storage Unit Experimental Targeting Computer Advanced Weapon Cycler > --- WEAPON (2) ------- Improved Assault Rifle Improved Assault Rifle > --- INVENTORY (20) --- Heavy Ion Engine Reinforced Fission Core Makeshift Leg Experimental Heat Sink Huge Storage Unit High-capacity Matter Pod (67) Experimental Sensor Array Advanced Transmission Jammer Hacking Suite System Purifier Improved Assault Rifle 8R-AWN's Boregun 8R-AWN's Boregun Rocket Launcher Plasma Cutter Heavy Mace Katana Peak State ------------ > --- POWER ------------ Light Neutrino Core > --- PROPULSION ------- Carbon-fiber Leg Advanced Myomer Leg Advanced Myomer Leg > --- UTILITY ---------- High-capacity Storage Unit Light Armor Plating Light Armor Plating > --- WEAPON ----------- Improved Assault Rifle Improved Assault Rifle > --- INVENTORY -------- Heavy Ion Engine Reinforced Fission Core Makeshift Leg Experimental Heat Sink Experimental Sensor Array Experimental Targeting Computer Advanced Weapon Cycler Advanced Transmission Jammer Light Armor Plating System Purifier Improved Assault Rifle 8R-AWN's Boregun 8R-AWN's Boregun Rocket Launcher Plasma Cutter Katana [Rating: 44] Favorites ----------- Power Heavy Ion Engine Engine Heavy Ion Engine Power Core Light Neutrino Core Propulsion Improved Treads Treads Improved Treads Leg Advanced Myomer Leg Wheel Compact Wheel Utility Huge Storage Unit Device Shield Generator Storage Huge Storage Unit Processor Salvage Targeting Computer Protection Light Armor Plating Weapon Heavy Particle Gun Energy Gun Heavy Particle Gun Energy Cannon Advanced Beam Cannon Ballistic Gun Improved Assault Rifle Ballistic Cannon Improved Light Cannon Launcher Rocket Launcher Special Weapon Plasma Cutter Slashing Weapon Katana Build | -11 -10 -10 -9 -9 -9 -8 ------- Run | Scr Mat Min Mat Min Exi Min Slots Evolved 2 | . . . 2 . . . Power . | . . . . . . . Propulsion 1 | . . . 1 . . . Utility 1 | . . . 1 . . . Weapon . | . . . . . . . Parts Attached 117 | 7 22 17 33 3 30 5 Power 8 | 1 2 1 3 . 1 . Engine 7 | 1 2 1 3 . . . Core 1 | . . . . . 1 . Reactor . | . . . . . . . Propulsion 39 | 3 10 11 8 1 6 . Treads 20 | . 4 5 8 . 3 . Leg 3 | . . . . . 3 . Wheel 16 | 3 6 6 . 1 . . Hover . | . . . . . . . Flight . | . . . . . . . Utility 35 | 1 3 1 14 . 13 3 Device 22 | . 1 1 14 . 5 1 Storage 5 | 1 2 . . . 2 . Processor 2 | . . . . . 1 1 Hackware . | . . . . . . . Protection 6 | . . . . . 5 1 Artifact . | . . . . . . . Weapon 35 | 2 7 4 8 2 10 2 Energy Gun 7 | 2 . . 4 1 . . Energy Cannon 1 | . . . 1 . . . Ballistic Gun 8 | . 2 . . . 5 1 Ballistic Cannon 7 | . 3 3 1 . . . Launcher 4 | . . 1 1 1 1 . Special Weapon 6 | . 2 . 1 . 2 1 Impact Weapon . | . . . . . . . Slashing Weapon 2 | . . . . . 2 . Piercing Weapon . | . . . . . . . Special Melee Weapon . | . . . . . . . Unidentified Prototypes 10 | . . . 3 . 6 1 Parts Lost 14 | . 1 1 1 . 6 5 Power 1 | . . . . . . 1 Propulsion 5 | . 1 . 1 . 2 1 Utility 8 | . . 1 . . 4 3 Weapon . | . . . . . . . Highest Loss Streak 6 | . 1 1 1 . 6 5 To Critical Strikes 3 | . . . . . 3 . Average Slot Usage (%) 99 | . 97 100 99 100 99 94 Engine 10 | . 14 14 11 11 7 . Treads 22 | . 20 2 31 23 23 . Leg 1 | . . . . . 5 31 Wheel 7 | . 7 25 1 9 3 . Device 16 | . 12 14 21 22 6 . Storage 11 | . 14 14 11 11 11 11 Protection 2 | . . . . . 11 20 Energy Gun 12 | . 2 . 16 21 2 . Ballistic Gun 4 | . 8 . . . 14 12 Ballistic Cannon 4 | . 15 28 5 . . . Naked Turns . | . . . . . . . Heaviest Build 104 | 12 93 98 98 97 104 60 Greatest Support 81 | 32 46 32 69 69 81 75 Greatest Overweight (x) 32 | . 5 5 6 32 6 . Average Overweight (x) 3 | . 1 2 1 10 1 . Largest Inventory Capacity 25 | 8 25 25 25 25 25 20 Average Capacity 22 | 6 18 25 25 25 19 20 Most Carried 25 | 4 15 18 25 25 25 20 Average Carried 19 | 2 10 16 23 24 15 19 Final Capacity 25 | 8 25 25 25 25 20 20 Final Carried 25 | 4 15 18 25 25 20 17 Class Distribution -------------------- 96% | Mutant 3% | Scavenger-Mutant Dominant Class ---------------- Mutant | -10/Materials Mutant | -10/Mines Mutant | -9/Materials Mutant | -9/Mines Mutant | -9/Exiles Scavenger-Mutant | -8/Mines Resources | -11 -10 -10 -9 -9 -9 -8 ----------- Run | Scr Mat Min Mat Min Exi Min Matter Collected 2381 | 270 659 257 630 80 485 . Remotely . | . . . . . . . Salvage Created 2937 | 79 703 177 1330 298 350 . Parts 214 | 5 56 23 74 23 33 . Haulers Intercepted 7 | . 2 . 5 . . . Recyclers Shooed 5 | . 4 . 1 . . . Parts Field Recycled . | . . . . . . . Retrieved Matter . | . . . . . . . Parts Self-Destructed . | . . . . . . . Prevented . | . . . . . . . Kills | -11 -10 -10 -9 -9 -9 -8 ------- Run | Scr Mat Min Mat Min Exi Min Combat Hostiles Destroyed 60 | . 12 10 25 11 2 . Melee 1 | . . . . . 1 . Guns 24 | . 3 . 16 5 . . Cannons 24 | . 9 8 7 . . . AOE 10 | . . 2 1 6 1 . Classes Destroyed 14 | 2 7 . 1 1 3 . Worker 7 | . 4 . 1 2 . . Builder 3 | . 1 1 1 . . . Tunneler 3 | 1 . 1 1 . . . Hauler 7 | . 2 . 5 . . . Recycler 6 | 1 3 . 1 1 . . Operator 2 | . 2 . . . . . Turret 1 | . . . . . 1 . Watcher 8 | . 3 . 5 . . . Swarmer 25 | . 6 6 6 7 . . Grunt 23 | . 6 4 10 3 . . Duelist 1 | . . . . 1 . . Sentry 9 | . . . 9 . . . Zionite 7 | . . . . . 7 . Assembled 1 | . . . . . 1 . Best Kill Streak 7 | 2 5 4 3 6 7 . Combat Bots Only 6 | . 3 3 3 6 1 . Max Kills in Single Turn 4 | 1 1 2 2 4 1 . Gunslinging . | . . . . . . . Exploded 4 | . . 2 1 4 1 . Melee 1 | . . . . . 1 . Uniques/NPCs Destroyed 2 | . . . . . 2 . 8R-AWN (-9/Exiles) EX-HEX (-9/Exiles) Combat | -11 -10 -10 -9 -9 -9 -8 -------- Run | Scr Mat Min Mat Min Exi Min Damage Taken 2912 | . 355 219 754 124 696 764 Core 553 | . 85 25 72 10 42 319 Absorbed by Shields 470 | . 57 89 160 50 114 . Regen/Repaired (Parts) 158 | . . . 158 . . . Core Remaining (%) 78 | 100 . 56 . . . . Volleys Fired 256 | 4 81 20 99 14 35 3 Largest 2 | 2 2 2 2 2 2 2 Hottest 110 | 90 100 87 110 110 60 43 Shots Fired 467 | 8 140 38 196 23 56 6 Gun 295 | 8 72 . 152 18 42 3 Cannon 142 | . 64 36 42 . . . Launcher 11 | . . 2 1 5 3 . Special 19 | . 4 . 1 . 11 3 Kinetic 230 | . 107 36 42 . 42 3 Thermal 210 | 4 21 . 153 18 11 3 Explosive 11 | . . 2 1 5 3 . Electromagnetic 16 | 4 12 . . . . . Robot Hit Streak 23 | 4 11 5 23 5 8 8 Robot Miss Streak 5 | 1 5 3 5 3 5 1 Penetration Max . | . . . . . . . Secondary Targets 2 | . 1 . . 1 . . Max Gunslinging Chain 1 | . 1 . . 1 . . Shots Hit Robots 314 | 5 82 22 129 11 60 5 Core Hits 128 | 2 34 14 43 16 19 . Critical Kills 2 | . . 1 . . 1 . Critical Parts Destroyed 1 | . . . . . 1 . Critical Strikes 15 | . 2 2 6 1 3 1 Burn 6 | . . . 5 1 . . Destroy 3 | . . 1 . . 2 . Blast 4 | . 2 1 1 . . . Sever 2 | . . . . . 1 1 Melee Attacks 32 | . . . . . 32 . Impact . | . . . . . . . Slashing 32 | . . . . . 32 . Piercing . | . . . . . . . Sneak Attacks . | . . . . . . . Combat Hostiles . | . . . . . . . Follow-up Attacks 4 | . . . . . 4 . Damage Inflicted 7262 | 114 1288 627 2762 589 1815 67 Guns 3089 | 70 413 . 2095 195 272 44 Cannons 1911 | . 849 529 533 . . . Explosions 707 | 44 . 98 83 394 88 . Melee 1416 | . . . . . 1416 . Ramming 77 | . 26 . 51 . . . Kinetic 2494 | . 1116 529 533 . 272 44 Thermal 2483 | 57 74 . 2095 195 39 23 Explosive 663 | . . 98 83 394 88 . Electromagnetic 129 | 57 72 . . . . . Impact . | . . . . . . . Slashing 1416 | . . . . . 1416 . Piercing . | . . . . . . . Highest Corruption . | . . . . . . . Average Corruption . | . . . . . . . Corruption Purged . | . . . . . . . Corruption Blocked . | . . . . . . . Overload Shots . | . . . . . . . Overflow Damage 94 | . 22 41 . . 31 . Projectiles 63 | . 22 41 . . . . Explosions . | . . . . . . . Melee 31 | . . . . . 31 . Knockbacks 19 | . 11 6 2 . . . Impact 1 | . 1 . . . . . Kinetic 15 | . 9 4 2 . . . Secondary 3 | . 1 2 . . . . Self-Inflicted Damage 35 | . . 35 . . . . Shots 1 | . . 1 . . . . Rammed 8 | . 4 . 4 . . . Targets Rammed 9 | . 4 . 5 . . . Kicked . | . . . . . . . Crushed 1 | . . . 1 . . . Highest Temperature 280 | 110 280 162 114 24 18 . Average Temperature 40 | 45 59 51 26 10 9 . Received Heat Transfer 343 | . 40 32 249 22 . . Effects 1 | . 1 . . . . . Interference 1 | . 1 . . . . . Siege Activations . | . . . . . . . Robots Corrupted . | . . . . . . . Combat Hostiles . | . . . . . . . Parts Fried 1 | . 1 . . . . . Impact Corruptions 1 | . . 1 . . . . Robots Melted 1 | . . . 1 . . . Combat Hostiles 1 | . . . 1 . . . Parts Melted 14 | . . . 14 . . . Heat Transferred 5172 | 87 222 . 4329 444 72 18 Parts Sabotaged . | . . . . . . . Parts Stolen . | . . . . . . . Parts Stripped . | . . . . . . . Power Chain Reactions 1 | 1 . . . . . . Missiles Intercepted . | . . . . . . . Alert | -11 -10 -10 -9 -9 -9 -8 ------- Run | Scr Mat Min Mat Min Exi Min Peak Influence 453 | 10 173 226 450 453 . . Initial 156 | . 6 50 29 156 . . Average 103 | 4 62 100 246 61 . . Maximum Alert Level 2 | . . 1 2 2 . . Low Security (%) 77 | 100 100 90 31 86 . 100 Level 1 16 | . . 9 51 9 . . Level 2 5 | . . . 17 4 . . Level 3 . | . . . . . . . Level 4 . | . . . . . . . Level 5 . | . . . . . . . High Security . | . . . . . . . Max Security . | . . . . . . . Squads Dispatched 2 | . 2 . . . . . Investigation 1 | . 1 . . . . . Extermination . | . . . . . . . Reinforcement 1 | . 1 . . . . . Assault . | . . . . . . . Garrison . | . . . . . . . Intercept . | . . . . . . . Searches Triggered . | . . . . . . . Construction Impeded . | . . . . . . . Haulers Reinforced . | . . . . . . . Active Scanning Responses . | . . . . . . . Cargo Convoy Interrupts . | . . . . . . . Stealth | -11 -10 -10 -9 -9 -9 -8 --------- Run | Scr Mat Min Mat Min Exi Min Distress Signals 2 | . . . 2 . . . Communications Jammed . | . . . . . . . Distress Signals . | . . . . . . . Times Spotted 111 | . 19 13 41 13 23 2 Peak Tracking Total 9 | . 3 3 4 6 9 2 Tactical Retreats 13 | . 1 2 2 1 7 . Traps | -11 -10 -10 -9 -9 -9 -8 ------- Run | Scr Mat Min Mat Min Exi Min Traps Triggered 1 | . 1 . . . . . Indirectly . | . . . . . . . Trap Hack Attempts . | . . . . . . . Triggered . | . . . . . . . Disarmed . | . . . . . . . Reprogrammed . | . . . . . . . Reused . | . . . . . . . Traps Extracted . | . . . . . . . Installed . | . . . . . . . Triggered . | . . . . . . . Exploded 3 | . . . . . 3 . Machines | -11 -10 -10 -9 -9 -9 -8 ---------- Run | Scr Mat Min Mat Min Exi Min Machines Disabled 9 | . 2 . 1 1 5 . Max in Single Turn 1 | . 1 . 1 1 1 . Machines Sabotaged . | . . . . . . . Garrisons Compromised . | . . . . . . . Overloaded Fab Kills . | . . . . . . . Hacking | -11 -10 -10 -9 -9 -9 -8 --------- Run | Scr Mat Min Mat Min Exi Min Machines Accessed 18 | . 7 . 9 . 2 . Terminals 12 | . 6 . 6 . . . Fabricators . | . . . . . . . Repair Stations 2 | . . . 2 . . . Recycling Units 1 | . 1 . . . . . Scanalyzers 1 | . . . 1 . . . Garrison Access . | . . . . . . . Total Hacks 54 | . 16 . 36 . 2 . Successful 32 | . 10 . 20 . 2 . Failed 21 | . 6 . 15 . . . Catastrophic 2 | . 1 . 1 . . . Database Lockouts 1 | . . . 1 . . . Manual 21 | . 7 . 13 . 1 . Terminals 32 | . 15 . 17 . . . Fabricators . | . . . . . . . Repair Stations 12 | . . . 12 . . . Recycling Units 1 | . 1 . . . . . Scanalyzers 7 | . . . 7 . . . Garrison Access . | . . . . . . . Terminal Hacks 12 | . 6 . 4 . 2 . Record 1 | . . . . . 1 . Robot Analysis 3 | . 1 . 2 . . . Prototype ID Bank 2 | . 2 . . . . . Terminal Index 1 | . 1 . . . . . Scanalyzer Index 1 | . . . 1 . . . Locate Traps 2 | . 2 . . . . . Zone Layout 1 | . . . 1 . . . EX-Prototype ID Bank 1 | . . . . . 1 . Fabricator Hacks . | . . . . . . . Repair Station Hacks 10 | . . . 10 . . . Scan Component 6 | . . . 6 . . . Repair 4 | . . . 4 . . . Recycling Unit Hacks . | . . . . . . . Scanalyzer 2 | . . . 2 . . . Insert Component 1 | . . . 1 . . . Analyze 1 | . . . 1 . . . Garrison Access Hacks . | . . . . . . . Unauthorized Hacks 8 | . 4 . 4 . . . Terminals 7 | . 3 . 4 . . . Track 1 | . . . 1 . . . Assimilate 1 | . 1 . . . . . Botnet 3 | . 1 . 2 . . . Operators 2 | . 1 . 1 . . . Fabricators . | . . . . . . . Repair Stations . | . . . . . . . Recycling Units 1 | . 1 . . . . . Tunnel 1 | . 1 . . . . . Scanalyzers . | . . . . . . . Garrison Access . | . . . . . . . Data Cores Recovered . | . . . . . . . Used . | . . . . . . . Hacking Detections 13 | . 6 . 7 . . . Full Trace Events . | . . . . . . . Feedback Events . | . . . . . . . Feedback Blocked . | . . . . . . . Robot Schematics Acquired . | . . . . . . . Robots Built . | . . . . . . . Authchips . | . . . . . . . Time . | . . . . . . . Total Robot Build Rating . | . . . . . . . Part Schematics Acquired . | . . . . . . . Parts Built . | . . . . . . . Authchips . | . . . . . . . Time . | . . . . . . . Total Part Build Rating . | . . . . . . . Parts Repaired 4 | . . . 4 . . . Time 128 | . . . 128 . . . Parts Recycled . | . . . . . . . Recycled Matter . | . . . . . . . Retrieved Matter . | . . . . . . . Retrieved Components . | . . . . . . . Parts Scanalyzed 1 | . . . 1 . . . Part Schematics Acquired . | . . . . . . . Parts Damaged . | . . . . . . . Bothacking | -11 -10 -10 -9 -9 -9 -8 ------------ Run | Scr Mat Min Mat Min Exi Min Used RIF Installer . | . . . . . . . Robots Hacked . | . . . . . . . Non-combat . | . . . . . . . Combat . | . . . . . . . Robot Hacks Applied . | . . . . . . . Relay Couplers Released . | . . . . . . . Fabnet Peak Effective % . | . . . . . . . Robots Rewired . | . . . . . . . Allies Hacked . | . . . . . . . Hacks Repelled . | . . . . . . . Allies | -11 -10 -10 -9 -9 -9 -8 -------- Run | Scr Mat Min Mat Min Exi Min Total Allies 4 | . . . . 4 . . Largest Group 4 | . . . . 4 4 . Highest-Rated Group 68 | . . . . 68 68 . Highest-Rated Ally 28 | . . . . 28 28 . Total Orders 3 | . . . . 2 1 . STAY 2 | . . . . 1 1 . FOLLOW 1 | . . . . 1 . . Ally Attacks 20 | . . . . 11 9 . Total Damage 163 | . . . . 73 90 . Kills 2 | . . . . 2 . . Allies Corrupted . | . . . . . . . Allies Melted . | . . . . . . . Intel | -11 -10 -10 -9 -9 -9 -8 ------- Run | Scr Mat Min Mat Min Exi Min Robot Analysis Total 3 | . 1 . 2 . . . Derelict Logs Recovered 4 | . . 3 . 1 . . Drone Launches . | . . . . . . . Drone Recoveries . | . . . . . . . Exploration | -11 -10 -10 -9 -9 -9 -8 ------------- Run | Scr Mat Min Mat Min Exi Min Turns Passed 14362 | 77 2119 847 2482 5770 2982 85 Spaces Moved 5069 | 54 941 534 819 1063 1648 10 Core 247 | 2 . . . 245 . . Treads 2284 | . 574 . 741 240 729 . Legs 408 | . . . . . 398 10 Wheels 2130 | 52 367 534 78 578 521 . Hover . | . . . . . . . Flight . | . . . . . . . Fastest Speed 50 | 50 80 130 130 190 120 120 Average Speed 250 | 95 174 135 230 537 162 120 Slowest Speed 1650 | 100 320 175 240 1650 240 120 Overloaded Moves . | . . . . . . . Propulsion Burnouts . | . . . . . . . Robots Hopped . | . . . . . . . Cave-ins Triggered . | . . . . . . . Exploration Rate (%) 63 | 4 98 98 53 98 90 2 Regions Visited 6 Branch Regions 4 Pre-discovered Areas 3 | . 1 . . 1 1 . Known Exits Taken 2 | . . 1 1 . . . Unknown Exits Taken 4 | 1 1 . . 1 1 . Scrap Searched 3 | . . 1 . 2 . . Spaces Dug 5 | . 4 . 1 . . . Terrain Destroyed 88 | 1 6 25 9 24 23 . Melee . | . . . . . . . Projectile 20 | . 6 9 3 . 2 . AOE 67 | 1 . 16 6 24 20 . Terrain Rammed . | . . . . . . . Walls Destroyed . | . . . . . . . Machines Disabled . | . . . . . . . Actions | -11 -10 -10 -9 -9 -9 -8 --------- Run | Scr Mat Min Mat Min Exi Min Total 6216 | 67 1274 613 1223 1095 1870 74 Wait 576 | . 200 39 203 10 68 56 Move 5063 | 53 940 533 818 1062 1647 10 Hop . | . . . . . . . Pick Up 83 | 3 16 3 33 3 25 . Fast Attach 28 | 6 4 1 7 . 10 . Attach 22 | . 3 1 4 . 11 3 Detach 7 | . 1 . 3 . 3 . Swap 67 | 1 15 15 22 3 9 2 Drop 77 | . 10 1 29 3 34 . Fire 256 | 4 81 20 99 14 35 3 Melee 28 | . . . . . 28 . Ram . | . . . . . . . Kick . | . . . . . . . Crush 9 | . 4 . 5 . . . Escape Stasis . | . . . . . . . Rewire . | . . . . . . . Trap . | . . . . . . . Miscellaneous . | . . . . . . . Route ------- -11/Scrapyard -10/Materials (discovered 5 exits: *Mat x3 / [*Min x2]) -10/Mines (discovered 2 exits: *Mat x2) -9/Materials (discovered 3 exits: [*Mat] / *Min x2) -9/Mines (discovered 3 exits: [*Mat x2] / *Exi) -9/Exiles -8/Mines History --------- Turn | Location | Event 14 | -11/Scrapyard | Discovered new exit (range 15) 78 | -11/Scrapyard | Entered Materials 342 | -10/Materials | Build established: Mutant 359 | -10/Materials | Discovered new exit (range 10) 648 | -10/Materials | Discovered new exit (range 6) 752 | -10/Materials | Discovered new exit (range 9) 904 | -10/Materials | Discovered new exit (range 15) 1736 | -10/Materials | Discovered new exit (range 12) 2197 | -10/Materials | Entered Mines 2229 | -10/Mines | Identified exit to Materials 2348 | -10/Mines | Learned Materials interactive machine intel 2388 | -10/Mines | Discovered exit to Materials (range 5) 2401 | -10/Mines | A weapon hastily lodged in a ceiling crevice suddenly fell to the ground 2856 | -10/Mines | Found a damaged Exp. Sensor Array with a note attached 2859 | -10/Mines | Found Prototype Device 3044 | -10/Mines | Entered Materials 3044 | -9/Materials | Evolved 2 slots: Propulsion x1, Utility x1 3045 | -9/Materials | Identified exit to Mines 3045 | -9/Materials | Identified Exp. Sensor Array 3046 | -9/Materials | Loaded intel: 17 interactive machine locations 3167 | -9/Materials | Repaired Shield Generator 3945 | -9/Materials | Central database locked down 5165 | -9/Materials | Discovered new exit (range 15) 5340 | -9/Materials | Repaired Shield Generator 5374 | -9/Materials | Repaired Imp. Treads 5407 | -9/Materials | Repaired Imp. Treads 5526 | -9/Materials | Entered Mines 5573 | -9/Mines | Met a Derelict bent on vengeance 5876 | -9/Mines | Learned 2 Materials zone layouts 6089 | -9/Mines | Assisted by bots powering up and referring to "LRC-V3" 6117 | -9/Mines | Assembled infested the area 10521 | -9/Mines | Discovered new exit (range 7) 10552 | -9/Mines | Discovered new exit (range 16) 10642 | -9/Mines | Escorted by a lone wolf Derelict 10662 | -9/Mines | Learned location of Storage (-8) 10883 | -9/Mines | Discovered new exit (range 5) 11114 | -9/Mines | Received a Rocket Launcher from a helpful Derelict 11296 | -9/Mines | Entered Exiles 11296 | -9/Exiles | Accompanied by 4 allies 11344 | -9/Exiles | Met 8R-AWN 11374 | -9/Exiles | Met EX-HEX 11462 | -9/Exiles | Met EX-DEC 11574 | -9/Exiles | Learned location of Zion (-6) 11656 | -9/Exiles | Discovered new exit (range 14) 11796 | -9/Exiles | Met EX-BIN 11826 | -9/Exiles | Aligned with FarCom system 11828 | -9/Exiles | Given EX-Vault access code 11874 | -9/Exiles | Opened EX-Vault 11887 | -9/Exiles | Found AWS/Gauss 11892 | -9/Exiles | Found Longsword +1 11935 | -9/Exiles | Warned to stay clear of 0b10 Research branches 12475 | -9/Exiles | Attacked by the Exiles 12673 | -9/Exiles | Lost 6 parts (2n4u) 12673 | -9/Exiles | Destroyed 8R-AWN 12693 | -9/Exiles | Found Prototype Ballistic Gun 12693 | -9/Exiles | Identified 8R-AWN's Boregun 12697 | -9/Exiles | Found 8R-AWN's Boregun 13067 | -9/Exiles | Destroyed EX-HEX 13311 | -9/Exiles | Found Prototype Device 13311 | -9/Exiles | Identified System Purifier 13655 | -9/Exiles | Found Prototype Processor 14080 | -9/Exiles | Build established: Scavenger-Mutant 14278 | -9/Exiles | Entered Mines 14341 | -8/Mines | 1C-UTU came to Exiles' defense 14347 | -8/Mines | Core integrity fell below 50% 14361 | -8/Mines | Core integrity fell below 20% 14362 | -8/Mines | Identified Exp. Targeting Computer 14363 | -8/Mines | Destroyed by 1C-UTU with 1C-UTU's Sword "Lootmaker" Last Messages --------------- 14125_ Acquired Mak. Leg. 14233_ Acquired Hcp. Matter Pod. 14259_ Acquired Hacking Suite. 14263_ Acquired Hvy. Mace. 14268_ Acquired Huge Storage Unit. A strange signal echoes through the mines. LOCATION=UNKNOWN GOAL=ESCAPE 14341_ 1C-UTU: "I came as fast as I could... Wait, it was you!" 14342_ 1C-UTU Prototype Leg severed. 14344_ Lgt. Armor Plating destroyed. 14345_ Lgt. Neutrino Core destroyed. 14345_ 1C-UTU follow-up attacks with Prototype Slashing Weapon. 14357_ Lgt. Armor Plating destroyed. 14359_ Carbon-fiber Leg destroyed. 14359_ 1C-UTU follow-up attacks with Prototype Slashing Weapon. 14360_ Lgt. Armor Plating destroyed. 14361_ S-10 Pest destroyed. 14362_ Identified Exp. Targeting Computer. 14363_ 1C-UTU follow-up attacks with Prototype Slashing Weapon. Map ----- +----------------------------------------------------+ | ???????????????????????????????????? | | ???????????????????????????????????? | | ???????????????????????????????????? | | ???????????????????????????????????? | | ???????????????????????????????????? | | ???????????????????????????????????? | | ???????????????????????????????????? | | ???????????????????????????????????? | | ???????????????????????????????????? | | ???????????????????????????????????? | | ???????????????????????????????????? | | ???????????????????????????????????? | | ???????????????????????????????????? | | ???????????????????????????????????? | | ???????????????????????????????????? | | ???????????????????????????????????? | | ???????????????????????????????????? | | ???????????????????????????????????? | | ???????????????????????????????????? | | ???????????????????????????????????? | | ???????????????????????????????????? | | ???????????????????????????????????? | | ???????????????????????????????????? | | ????#??????????????????????????????? | | ????# ??#####??????????????????????? | | ???##=### l@#??????????????????????? | | ??## %[ #??????????????????????? | | ??# ##??????????????????????? | | ??## ##???????????????????????? | | ???## ###????????????????????????? | | ????#####??????????????????????????? | | ???????????????????????????????????? | | ???????????????????????????????????? | | | | | | | | | | | | | | | | | | | | | | | | | | | | | | | | | | | +----------------------------------------------------+ Best States ------------- Heat Dissipation 54 Energy Generation 19 Energy Capacity 280 Matter Stores 300 Matter Capacity 300 Sight Range 16 Robot Scan Range 20 Terrain Scan Density 10 Additional Mass Support 12 Armor Coverage 375 Evasion (%) 55 Recoil Reduction 3 Salvage Targeting 1 Item Schematics ----------------- None Robot Schematics ------------------ None Fabricated ------------ Nothing Alien Tech Used ----------------- None Achievements -------------- None Challenges ------------ None Game ------ Seed HoverAuthchipShearcannon Manual? 0 Play Time 01:09:55 Cumulative 521.2 hours Start 2022.04.20 @ 12:44:11 End 2022.04.20 @ 14:57:01 Sessions 5 Manual Loads 0 Difficulty Rogue Special Mode None Game No. 168 Rogue 164 Adventurer 4 Explorer 0 Win Type - Total 13 Types 6/2/3/0/0/0/1/1/0 Lore% 82 Gallery% 86 Achievement% 73 Wizard Run 0 Options --------- ASCII 1 Keyboard 0 Movement Arrows Keybinds 0 Fullscreen 1 Font 18/SmallcapsGlow Map View 76x50 Tactical HUD 1 Map Filters NONE Filters NONE Steam 1 RUN: 7b7f3572-92a4-496a-b119-03dbc4eb6115